{"text_format":"2","workbook":"xlsx","n_sheets":7,"sheets":["Partner Packages - Live","Partner Packages Live - HH","Partner Packages Live - CTV","Partner Packages Live - LTV","PPL Packages","HLs Partner","Team Specific Packages"],"not_rendered":{"charts":0,"images":0,"macros":0,"external_links":0,"defined_names":0,"comments":0,"pivot_tables":0},"unopened":[],"bounds":{"document_bytes":16777216,"sheet_cells":100000,"run_cost":"one","rows_first":2000,"rows_last":500,"rows_between":2000,"halvings":0,"cell_chars":16384,"cell_head_chars":4096},"cells_cut":0,"cells_raw":0,"read":"whole","date_system":"1900"}

{"sheet":"Partner Packages - Live","index":0,"n_rows":75,"n_cols":7,"rows_kept":75,"cut":false,"hidden":false,"merged":[]}
[]
[null,"A. Co-presenting Partner"]
[null,"| Co-Presenting Partner | HH",{"$nulls":4},"WPL 2026"]
[null,"Type","Classification","Ad Assets","Targeting","Duration\n (in Secs)","Impressions -10s\n (Mn) / Total Exposures"]
[null,"Live","Video","Mid Rolls","ROS","10s",301.39999999999998]
[null,"Live","Display","Squeezeups","ROS","NA",{"$f":"4*22","v":88}]
[null,"Display Asset","Display","Frame, Fence, Social Banner","ROS","NA",{"$f":"2*22","v":44}]
[]
[]
[null,"| Co-Presenting Partner | Connected TV",{"$nulls":4},"WPL 2026"]
[null,"Type","Classification","Ad Assets","Targeting","Duration\n (in Secs)","Impressions -10s\n (Mn) / Total Exposures"]
[null,"Live","Video","Mid Rolls","ROS","10s",109.3]
[null,"Live","Display","Squeezeups","ROS","NA",{"$f":"4*22","v":88}]
[]
[]
[null,{"$f":"$D$1 & \"| Co-Presenting Partner | LTV\"","v":"| Co-Presenting Partner | LTV"},{"$nulls":4},"WPL 2026"]
[null,"Type","Classification","Ad Assets","Targeting","Duration\n (in Secs)","Total FCT / Exposure"]
[null,"Live","Video","SD+HD Live","Pan India","10s",{"$f":"280*22","v":6160}]
[null,"Live","Display","Squeezeups","Pan India","NA",{"$f":"4*22","v":88}]
[null,"PPL","Video","SD+HD PPL","Pan India","10s",{"$f":"60*22","v":1320}]
[]
[]
[null,"HH + CTV + LTV - Co-Presenting Partner"]
[]
[]
[null,"C. Associate Partner"]
[null,"| Associate Partner | HH",{"$nulls":4},"WPL 2026"]
[null,"Type","Classification","Ad Assets","Targeting","Duration\n (in Secs)","Impressions -10s\n (Mn) / Total Exposures"]
[null,"Live","Video","Mid Rolls","ROS","10s",221.1]
[null,"Live","Display","Squeezeups","ROS","NA",{"$f":"3*22","v":66}]
[null,"Display Asset","Display","Frame, Fence, Social Banner","ROS","NA",{"$f":"1*22","v":22}]
[]
[]
[null,"| Associate Partner | CTV",{"$nulls":4},"WPL 2026"]
[null,"Type","Classification","Ad Assets","Targeting","Duration\n (in Secs)","Impressions -10s\n (Mn) / Total Exposures"]
[null,"Live","Video","Mid Rolls","ROS","10s",82]
[null,"Live","Display","Squeezeups","ROS","NA",{"$f":"3*22","v":66}]
[]
[]
[null,"| Associate Partner | LTV",{"$nulls":4},"WPL 2026"]
[null,"Type","Classification","Ad Assets","Targeting","Duration\n (in Secs)","Total FCT / Exposure"]
[null,"Live","Video","SD+HD Live","Pan India","10s",{"$f":"200*22","v":4400}]
[null,"Live","Display","Squeezeups","Pan India","NA",{"$f":"3*22","v":66}]
[null,"PPL","Video","SD+HD PPL","Pan India","10s",{"$f":"45*22","v":990}]
[]
[]
[null,"HH + CTV + LTV - Associate Partner"]
[]
[]
[null,"Please Note:"]
[null,"Taxes extra as applicable."]
[null,"This package is subject to BCCI / channel guidelines."]
[null,"^Secondage mentioned for FCT & number of exposures mentioned for graphical elements and segment"]
[null,"Matches considered for Live entitlements, Days considered for PPL entitlements, Episodes considered for Surround Shows, etc."]
[null,"Matches count and PPL Days is subject to final schedule from Board / channel broadcast plan & the days / FCT may change accordingly"]
[null,"No Spot placement request would be entertained"]
[null,"Pushbacks/Squeezeups duration - Max 5 secs"]
[null,"For regional channels, the commercial should be in the respective regional language"]
[null,"Channel mix may change without prior notice"]
[null,"^ Indicative; Subject to Tournament Schedule; Total FCT/Exposures shall vary accordingly"]
[null,"* Pre Roll duration - upto 10 sec is allowed"]
[null,"Segments / VODs are limited and hence available on a first come first serve basis only"]
[null,"The Segment and VOD finalised for the advertiser has to be same"]
[null,"Fence Ads, Social Banner applicable for Mobile only"]
[null,"Billing will be only as per STAR India Pvt. Ltd reporting, numbers only; 3rd party trackers should be placed only to track overall numbers"]
[null,"All pricing/costs are Net to STAR India Pvt. Ltd "]
[null,"All the creatives as per specs have to be QC and S&P approved 5 business days in advance of going live"]
[null,"Package is subject to respective leagues / events / broadcaster guidelines"]
[null,"Inventory in HLs / VODs is on non-exclusive basis"]
[null,"The client understands and agrees that this deal cannot be cancelled either in full or part, at any given point of time from the confirmation time"]
[null,"Segment are bundled with CP level only that too if at least 2 platforms (out of HH, CTV, Linear TV) are bought together"]
[null,"Impressions distribution should adhere to match wise viewership weightages, as shared by Jiostar"]
[null,"No per creative / per feed impression guarantee"]
[null,"Segment Duration - 30-45 secs"]
[null,"For Video Impressions, Mid roll / Pre roll will be treated as single line item, flexibility will be at Ops end for the split between Mid roll & Pre roll so as to manage deliveries"]

{"sheet":"Partner Packages Live - HH","index":1,"n_rows":44,"n_cols":7,"rows_kept":44,"cut":false,"hidden":false,"merged":[]}
[]
[null,"A. Co-presenting Partner"]
[null,"| Co-Presenting Partner | HH",{"$nulls":4},"WPL 2026"]
[null,"Type","Classification","Ad Assets","Targeting","Duration\n (in Secs)","Impressions -10s\n (Mn) / Total Exposures"]
[null,"Live","Video","Mid rolls","ROS","10s",301.39999999999998]
[null,"Live","Display","Squeezeups","ROS","NA",{"$f":"4*22","v":88}]
[null,"Display Asset","Display","Frame, Fence, Social Banner","ROS","NA",{"$f":"2*22","v":44}]
[]
[]
[null,"B. Associate Partner"]
[null,"| Associate Partner | HH",{"$nulls":4},"WPL 2026"]
[null,"Type","Classification","Ad Assets","Targeting","Duration\n (in Secs)","Impressions -10s\n (Mn) / Total Exposures"]
[null,"Live","Video","Mid rolls","ROS","10s",221.1]
[null,"Live","Display","Squeezeups","ROS","NA",66]
[null,"Display Asset","Display","Frame, Fence, Social Banner","ROS","NA",22]
[]
[]
[]
[null,"Please Note:"]
[null,"Taxes extra as applicable."]
[null,"This package is subject to BCCI / channel guidelines."]
[null,"^Secondage mentioned for FCT & number of exposures mentioned for graphical elements and segment"]
[null,"Matches considered for Live entitlements, Days considered for PPL entitlements, Episodes considered for Surround Shows, etc."]
[null,"Matches count and PPL Days is subject to final schedule from Board / channel broadcast plan & the days / FCT may change accordingly"]
[null,"No Spot placement request would be entertained"]
[null,"Pushbacks/Squeezeups duration - Max 5 secs"]
[null,"For regional channels, the commercial should be in the respective regional language"]
[null,"Channel mix may change without prior notice"]
[null,"^ Indicative; Subject to Tournament Schedule; Total FCT/Exposures shall vary accordingly"]
[null,"* Pre Roll duration - upto 10 sec is allowed"]
[null,"Segments / VODs are limited and hence available on a first come first serve basis only"]
[null,"The Segment and VOD finalised for the advertiser has to be same"]
[null,"Fence Ads, Social Banner applicable for Mobile only"]
[null,"Billing will be only as per STAR India Pvt. Ltd reporting, numbers only; 3rd party trackers should be placed only to track overall numbers"]
[null,"All pricing/costs are Net to STAR India Pvt. Ltd "]
[null,"All the creatives as per specs have to be QC and S&P approved 5 business days in advance of going live"]
[null,"Package is subject to respective leagues / events / broadcaster guidelines"]
[null,"Inventory in HLs / VODs is on non-exclusive basis"]
[null,"The client understands and agrees that this deal cannot be cancelled either in full or part, at any given point of time from the confirmation time"]
[null,"Segment are bundled with CP level only that too if at least 2 platforms (out of HH, CTV, Linear TV) are bought together"]
[null,"Impressions distribution should adhere to match wise viewership weightages, as shared by Jiostar"]
[null,"No per creative / per feed impression guarantee"]
[null,"Segment Duration - 30-45 secs"]
[null,"For Video Impressions, Mid roll / Pre roll will be treated as single line item, flexibility will be at Ops end for the split between Mid roll & Pre roll so as to manage deliveries"]

{"sheet":"Partner Packages Live - CTV","index":2,"n_rows":42,"n_cols":7,"rows_kept":42,"cut":false,"hidden":false,"merged":[]}
[]
[null,"A. Co-presenting Partner"]
[null,"| Co-Presenting Partner | Connected TV",{"$nulls":4},"WPL 2026"]
[null,"Type","Classification","Ad Assets","Targeting","Duration\n (in Secs)","Impressions -10s\n (Mn) / Total Exposures"]
[null,"Live","Video","Mid rolls","ROS","10s",109.3]
[null,"Live","Display","Squeezeups","ROS","NA",88]
[]
[]
[null,"B. Associate Partner"]
[null,"| Associate Partner | CTV",{"$nulls":4},"WPL 2026"]
[null,"Type","Classification","Ad Assets","Targeting","Duration\n (in Secs)","Impressions -10s\n (Mn) / Total Exposures"]
[null,"Live","Video","Mid rolls","ROS","10s",82]
[null,"Live","Display","Squeezeups","ROS","NA",66]
[]
[]
[]
[null,"Please Note:"]
[null,"Taxes extra as applicable."]
[null,"This package is subject to BCCI / channel guidelines."]
[null,"^Secondage mentioned for FCT & number of exposures mentioned for graphical elements and segment"]
[null,"Matches considered for Live entitlements, Days considered for PPL entitlements, Episodes considered for Surround Shows, etc."]
[null,"Matches count and PPL Days is subject to final schedule from Board / channel broadcast plan & the days / FCT may change accordingly"]
[null,"No Spot placement request would be entertained"]
[null,"Pushbacks/Squeezeups duration - Max 5 secs"]
[null,"For regional channels, the commercial should be in the respective regional language"]
[null,"Channel mix may change without prior notice"]
[null,"^ Indicative; Subject to Tournament Schedule; Total FCT/Exposures shall vary accordingly"]
[null,"* Pre Roll duration - upto 10 sec is allowed"]
[null,"Segments / VODs are limited and hence available on a first come first serve basis only"]
[null,"The Segment and VOD finalised for the advertiser has to be same"]
[null,"Fence Ads, Social Banner applicable for Mobile only"]
[null,"Billing will be only as per STAR India Pvt. Ltd reporting, numbers only; 3rd party trackers should be placed only to track overall numbers"]
[null,"All pricing/costs are Net to STAR India Pvt. Ltd "]
[null,"All the creatives as per specs have to be QC and S&P approved 5 business days in advance of going live"]
[null,"Package is subject to respective leagues / events / broadcaster guidelines"]
[null,"Inventory in HLs / VODs is on non-exclusive basis"]
[null,"The client understands and agrees that this deal cannot be cancelled either in full or part, at any given point of time from the confirmation time"]
[null,"Segment are bundled with CP level only that too if at least 2 platforms (out of HH, CTV, Linear TV) are bought together"]
[null,"Impressions distribution should adhere to match wise viewership weightages, as shared by Jiostar"]
[null,"No per creative / per feed impression guarantee"]
[null,"Segment Duration - 30-45 secs"]
[null,"For Video Impressions, Mid roll / Pre roll will be treated as single line item, flexibility will be at Ops end for the split between Mid roll & Pre roll so as to manage deliveries"]

{"sheet":"Partner Packages Live - LTV","index":3,"n_rows":44,"n_cols":7,"rows_kept":44,"cut":false,"hidden":false,"merged":[]}
[]
[null,"A. Co-presenting Partner"]
[null,{"$f":"$D$1 & \"| Co-Presenting Partner | LTV\"","v":"| Co-Presenting Partner | LTV"},{"$nulls":4},"WPL 2026"]
[null,"Type","Classification","Ad Assets","Targeting","Duration\n (in Secs)","Total FCT / Exposure"]
[null,"Live","Video","FCT","SD+HD Live","10s",{"$f":"22*280","v":6160}]
[null,"Live","Display","Squeezeups","NA","NA",88]
[null,"PPL","Video","FCT","SD+HD PPL","10s",{"$f":"22*60","v":1320}]
[]
[]
[null,"B. Associate Partner"]
[null,"| Associate Partner | LTV",{"$nulls":4},"WPL 2026"]
[null,"Type","Classification","Ad Assets","Targeting","Duration\n (in Secs)","Total FCT / Exposure"]
[null,"Live","Video","FCT","SD+HD Live","10s",{"$f":"22*200","v":4400}]
[null,"Live","Display","Squeezeups","NA","NA",66]
[null,"PPL","Video","FCT","SD+HD PPL","10s",{"$f":"45*22","v":990}]
[]
[]
[]
[null,"Please Note:"]
[null,"Taxes extra as applicable."]
[null,"This package is subject to BCCI / channel guidelines."]
[null,"^Secondage mentioned for FCT & number of exposures mentioned for graphical elements and segment"]
[null,"Matches considered for Live entitlements, Days considered for PPL entitlements, Episodes considered for Surround Shows, etc."]
[null,"Matches count and PPL Days is subject to final schedule from Board / channel broadcast plan & the days / FCT may change accordingly"]
[null,"No Spot placement request would be entertained"]
[null,"Pushbacks/Squeezeups duration - Max 5 secs"]
[null,"For regional channels, the commercial should be in the respective regional language"]
[null,"Channel mix may change without prior notice"]
[null,"^ Indicative; Subject to Tournament Schedule; Total FCT/Exposures shall vary accordingly"]
[null,"* Pre Roll duration - upto 10 sec is allowed"]
[null,"Segments / VODs are limited and hence available on a first come first serve basis only"]
[null,"The Segment and VOD finalised for the advertiser has to be same"]
[null,"Fence Ads, Social Banner applicable for Mobile only"]
[null,"Billing will be only as per STAR India Pvt. Ltd reporting, numbers only; 3rd party trackers should be placed only to track overall numbers"]
[null,"All pricing/costs are Net to STAR India Pvt. Ltd "]
[null,"All the creatives as per specs have to be QC and S&P approved 5 business days in advance of going live"]
[null,"Package is subject to respective leagues / events / broadcaster guidelines"]
[null,"Inventory in HLs / VODs is on non-exclusive basis"]
[null,"The client understands and agrees that this deal cannot be cancelled either in full or part, at any given point of time from the confirmation time"]
[null,"Segment are bundled with CP level only that too if at least 2 platforms (out of HH, CTV, Linear TV) are bought together"]
[null,"Impressions distribution should adhere to match wise viewership weightages, as shared by Jiostar"]
[null,"No per creative / per feed impression guarantee"]
[null,"Segment Duration - 30-45 secs"]
[null,"For Video Impressions, Mid roll / Pre roll will be treated as single line item, flexibility will be at Ops end for the split between Mid roll & Pre roll so as to manage deliveries"]

{"sheet":"PPL Packages","index":4,"n_rows":125,"n_cols":8,"rows_kept":125,"cut":false,"hidden":false,"merged":[]}
[]
[]
[null,"Title PPL Partner"]
[null,"Title PPL Partner"]
[null,"Platform","Type","Classification","Ad Assets","Targeting","Duration\n (in Secs)"]
[null,"All","PPL","In Show","Studio Branding - PPL","ROS","NA"]
[null,"All","PPL","In Show","Verbal Mention","ROS","Upto 2s"]
[null,"HH","Live+PPL","Video","Mid Rolls","ROS",10]
[null,"CTV","Live+PPL","Video","Mid Rolls","ROS",10]
[null,"HH","PPL","Display","Squeezeups","NA","NA"]
[null,"CTV","PPL","Display","Squeezeups","NA","NA"]
[null,"Linear TV (SD+HD)","PPL","Video","FCT","SD+HD",10]
[null,"Linear TV (SD+HD)","PPL","Display","Squeezeups","NA","NA"]
[null,"Linear TV (SD+HD)","Live","Video","FCT","SD+HD",10]
[null,"Promo Tags & Logo presence on End plates"]
[]
[]
[]
[null,"Co-Powered By PPL Partner"]
[null,"Co-Powered By PPL Partner"]
[null,"Platform","Type","Classification","Ad Assets","Targeting","Duration\n (in Secs)"]
[null,"All","PPL","In Show","Studio Branding - PPL","ROS","NA"]
[null,"All","PPL","In Show","Verbal Mention","ROS","Upto 2s"]
[null,"HH","Live+PPL","Video","Mid Rolls","ROS",10]
[null,"CTV","Live+PPL","Video","Mid Rolls","ROS",10]
[null,"HH","PPL","Display","Squeezeups","NA","NA"]
[null,"CTV","PPL","Display","Squeezeups","NA","NA"]
[null,"Linear TV (SD+HD)","PPL","Video","FCT","SD+HD",10]
[null,"Linear TV (SD+HD)","PPL","Display","Squeezeups","NA","NA"]
[]
[]
[]
[null,"Co-Presenting PPL Partner"]
[null,"Co-Presenting PPL Partner"]
[null,"Platform","Type","Classification","Ad Assets","Targeting","Duration\n (in Secs)"]
[null,"HH","Live+PPL","Video","Mid rolls","ROS",10]
[null,"CTV","Live+PPL","Video","Mid rolls","ROS",10]
[null,"HH","PPL","Display","Squeezeups","NA","NA",1]
[null,"CTV","PPL","Display","Squeezeups","NA","NA"]
[null,"HH","Live","Display","Fence, Frame, Social Banner","ROS","NA"]
[null,"Linear TV (SD+HD)","Live","Video","FCT","SD+HD",10]
[null,"Linear TV (SD+HD)","PPL","Video","FCT","SD+HD",10]
[null,"Linear TV (SD+HD)","PPL","Display","Squeezeups","NA","NA"]
[]
[]
[]
[null,"Co-Presenting PPL Partner-Digital"]
[null,"Co-Presenting PPL Partner-Digital"]
[null,"Platform","Type","Classification","Ad Assets","Targeting","Duration\n (in Secs)"]
[null,"HH","Live+PPL","Video","Mid rolls","ROS",10]
[null,"CTV","Live+PPL","Video","Mid rolls","ROS",10]
[null,"HH","PPL","Display","Squeezeups","NA","NA"]
[null,"CTV","PPL","Display","Squeezeups","NA","NA"]
[null,"HH","Live","Display","Fence, Frame, Social Banner","ROS","NA"]
[]
[]
[]
[null,"Co-Presenting PPL Partner-LTV"]
[null,"Co-Presenting PPL Partner- LTV"]
[null,"Platform","Type","Classification","Ad Assets","Targeting","Duration\n (in Secs)"]
[null,"Linear TV (SD+HD)","PPL","Video","FCT","SD+HD",10]
[null,"Linear TV (SD+HD)","Live","Video","FCT","SD+HD",10]
[null,"Linear TV (SD+HD)","PPL","Display","Squeezeups","NA","NA"]
[]
[]
[null,"Associate PPL Partner"]
[null,"Associate PPL Partner"]
[null,"Platform","Type","Classification","Ad Assets","Targeting","Duration\n (in Secs)"]
[null,"HH","Live+PPL","Video","Mid rolls","ROS",10]
[null,"CTV","Live+PPL","Video","Mid rolls","ROS",10]
[null,"HH","Live","Display","Fence, Frame, Social Banner","ROS","NA"]
[null,"HH","PPL","Display","Squeezeups","NA","NA"]
[null,"CTV","PPL","Display","Squeezeups","NA","NA"]
[null,"Linear TV (SD+HD)","PPL","Video","FCT","SD+HD",10]
[null,"Linear TV (SD+HD)","PPL","Display","Squeezeups","NA","NA"]
[]
[]
[]
[]
[null,"Associate PPL Partner-Digital"]
[null,"Associate PPL Partner-Digital"]
[null,"Platform","Type","Classification","Ad Assets","Targeting","Duration\n (in Secs)"]
[null,"HH","Live+PPL","Video","Mid rolls","ROS",10]
[null,"CTV","Live+PPL","Video","Mid rolls","ROS",10]
[null,"HH","Live","Display","Fence, Frame, Social Banner","ROS","NA"]
[null,"HH","PPL","Display","Squeezeups","NA","NA"]
[null,"CTV","PPL","Display","Squeezeups","NA","NA"]
[]
[]
[]
[null,"Associate PPL Partner-LTV"]
[null,"Associate PPL Partner-LTV"]
[null,"Platform","Type","Classification","Ad Assets","Targeting","Duration\n (in Secs)"]
[null,"Linear TV (SD+HD)","PPL","Video","FCT","SD+HD",10]
[null,"Linear TV (SD+HD)","PPL","Display","Squeezeups","NA","NA"]
[]
[]
[]
[]
[null,"Please Note:"]
[null,"Taxes extra as applicable."]
[null,"This package is subject to BCCI / channel guidelines."]
[null,"^Secondage mentioned for FCT & number of exposures mentioned for graphical elements and segment"]
[null,"Matches considered for Live entitlements, Days considered for PPL entitlements, Episodes considered for Surround Shows, etc."]
[null,"Matches count and PPL Days is subject to final schedule from Board / channel broadcast plan & the days / FCT may change accordingly"]
[null,"No Spot placement request would be entertained"]
[null,"Pushbacks/Squeezeups duration - Max 5 secs"]
[null,"For regional channels, the commercial should be in the respective regional language"]
[null,"Channel mix may change without prior notice"]
[null,"^ Indicative; Subject to Tournament Schedule; Total FCT/Exposures shall vary accordingly"]
[null,"* Pre Roll duration - upto 10 sec is allowed"]
[null,"Segments / VODs are limited and hence available on a first come first serve basis only"]
[null,"The Segment and VOD finalised for the advertiser has to be same"]
[null,"Fence Ads, Social Banner applicable for Mobile only"]
[null,"Billing will be only as per STAR India Pvt. Ltd reporting, numbers only; 3rd party trackers should be placed only to track overall numbers"]
[null,"All pricing/costs are Net to STAR India Pvt. Ltd "]
[null,"All the creatives as per specs have to be QC and S&P approved 5 business days in advance of going live"]
[null,"Package is subject to respective leagues / events / broadcaster guidelines"]
[null,"Inventory in HLs / VODs is on non-exclusive basis"]
[null,"The client understands and agrees that this deal cannot be cancelled either in full or part, at any given point of time from the confirmation time"]
[null,"Segment are bundled with CP level only that too if at least 2 platforms (out of HH, CTV, Linear TV) are bought together"]
[null,"Impressions distribution should adhere to match wise viewership weightages, as shared by Jiostar"]
[null,"No per creative / per feed impression guarantee"]
[null,"Segment Duration - 30-45 secs"]
[null,"For Video Impressions, Mid roll / Pre roll will be treated as single line item, flexibility will be at Ops end for the split between Mid roll & Pre roll so as to manage deliveries"]

{"sheet":"HLs Partner","index":5,"n_rows":19,"n_cols":9,"rows_kept":19,"cut":false,"hidden":false,"merged":[[15,1,18,1],[2,1,2,8],[4,1,8,1],[10,1,13,1]]}
[]
[]
[null,"WPL 2026 | Highlights Partner | HHW + CTV + LTV"]
[null,"Platform","No. of Matches/ Match Days","Type","Classification","Ad Assets","Targeting","Duration\n (in Secs)","Impressions (Mn) / FCT (sec) / Exposures"]
[null,"HHW","All","HL","Video","Video MR/ PR Imp (mn) - 10 sec","ROS",10,113]
[null,null,"All","Live","Display","Fence / Frame / Social Banner","ROS","-",9]
[null,null,"All","HL","Display","1 SUP per video","ROS","-"]
[null,null,"All","HL","Display","Branded slate","ROS","-"]
[null,null,"All","HL","Video","Voice over","ROS","-"]
[null,"Platform","No. of Matches/ Match Days","Type","Classification","Ad Assets","Targeting","Duration\n (in Secs)","Impressions (Mn) / FCT (sec) / Exposures"]
[null,"CTV","All","HL","Video","Video MR/ PR Imp (mn) - 10 sec","ROS",10,10]
[null,null,"All","HL","Display","1 SUP per video","ROS","-"]
[null,null,"All","Live","Display","Branded slate","ROS","-"]
[null,null,"All","Live","Video","Voice over","ROS","-"]
[null,"Platform","No. of Matches/ Match Days","Type","Classification","Ad Assets","Feed","# M","FCT (sec) / Exposures"]
[null,"LTV","All","HL","Video","HLs FCT","SD + HD",22,90]
[null,null,"All","Live","Video","Live FCT","SD + HD",22,75]
[null,null,"All","HL","Display","1 SUP per video","ROS","-"]
[null,null,"All","HL","Display","Op Slate + Closing Slate + Voice over","SD + HD","-","1 per video"]

{"sheet":"Team Specific Packages","index":6,"n_rows":24,"n_cols":8,"rows_kept":24,"cut":false,"hidden":false,"merged":[[2,1,2,7],[3,6,3,7],[9,6,9,7],[15,6,15,7]]}
[]
[]
[null,"Team specific packages - WPL 2026"]
[null,"HH Web",{"$nulls":4},"WPL 2026"]
[null,"Type","Classification","Ad Assets","Targeting","Duration\n (in Secs)","Imp / Exposures p m","# Matches"]
[null,"Live","Video","Mid Rolls","ROS","10s",7.1,8]
[null,"Live","Display","Squeezeups","ROS","NA",2,{"$f":"H6","v":8}]
[]
[]
[null,"Connected TV",{"$nulls":4},"WPL 2026"]
[null,"Type","Classification","Ad Assets","Targeting","Duration\n (in Secs)","Impressions -10s\n (Mn) / Total Exposures","# Matches"]
[null,"Live","Video","Mid Rolls","ROS","10s",2.02,{"$f":"H6","v":8}]
[null,"Live","Display","Squeezeups","ROS","NA",2,{"$f":"H12","v":8}]
[]
[]
[null,"LTV",{"$nulls":4},"WPL 2026"]
[null,"Type","Classification","Ad Assets","Targeting","Duration\n (in Secs)","Total FCT / Exposure","# Matches"]
[null,"Live","Video","SD+HD Live","Pan India","10s",120,{"$f":"H12","v":8}]
[null,"Live","Display","Squeezeups","Pan India","NA",2,{"$f":"H18","v":8}]
[]
[]
[null,"HH + CTV + LTV - Team Association Packages"]
[]
[null,"Note: Team Specific Packages on LTV - \n1) for RCB selection, the package will be at Special rate of 60,000 INR\n2) for other teams, the package will be a market rate of 50,000 INR"]